bitfinex/quotes_BTCUSD_20251104
["timestamp","ask_amount","ask_price","bid_price","bid_amount"]
[1762229787897,2.9655358,107260.0,107250.0,0.02871994]
[1762229788098,2.779073,107260.0,107250.0,0.21720012]
[1762229788339,2.9655358,107260.0,107250.0,0.00322994]
[1762229788542,2.9655358,107260.0,107250.0,0.05605994]
[1762229788748,2.779073,107260.0,107250.0,0.24254012]
[1762229789579,3.06011186,107260.0,107250.0,0.03071994]
[1762229790122,2.72011186,107260.0,107250.0,0.03071994]
[1762229790541,2.53364906,107260.0,107250.0,0.21720012]
[1762229790741,2.53364906,107260.0,107250.0,0.24044012]
[1762229791678,2.6255358,107260.0,107250.0,0.05395994]
[1762229791877,2.6255358,107260.0,107250.0,0.24044012]
[1762229792295,2.6255358,107260.0,107250.0,0.05395994]
[1762229792499,2.9655358,107260.0,107250.0,0.05395994]
[1762229792714,2.9655358,107260.0,107250.0,0.03071994]
[1762229792932,3.03060779,107260.0,107250.0,0.01526994]
[1762229793826,3.03060779,107260.0,107250.0,0.00322994]
[1762229795860,3.06679007,107260.0,107250.0,0.00322994]
[1762229796514,3.07551395,107260.0,107250.0,0.00322994]
[1762229796749,3.10437824,107260.0,107250.0,0.00322994]
[1762229796970,3.09565426,107260.0,107250.0,0.00322994]
[1762229797183,3.34195426,107260.0,107250.0,0.00322994]
[1762229797603,3.35337049,107260.0,107250.0,0.00322994]
[1762229797801,2.96555318,107250.0,107240.0,0.0004]
[1762229798045,3.0775772,107250.0,107240.0,0.0004]
[1762229798422,3.0900172,107250.0,107240.0,0.0004]
[1762229800200,3.0910172,107250.0,107240.0,0.0004]
[1762229801113,3.13960574,107250.0,107240.0,0.0004]
[1762229801316,3.12719948,107250.0,107240.0,0.0004]
[1762229802291,3.14182753,107250.0,107240.0,0.0004]
[1762229803494,2.98797788,107240.0,107230.0,0.0004]
[1762229803709,3.13618418,107240.0,107230.0,0.0004]
[1762229803942,3.11377687,107240.0,107230.0,0.00085999]
[1762229804161,3.11377687,107240.0,107220.0,0.0004]
[1762229804162,3.00177024,107230.0,107220.0,0.0004]
[1762229804363,3.0192182,107230.0,107220.0,0.0004]
[1762229804571,3.11379426,107230.0,107220.0,0.0004]
[1762229804789,3.11379426,107230.0,107220.0,0.00087999]
[1762229804989,3.11753389,107230.0,107220.0,0.00087999]
[1762229805629,3.11953389,107230.0,107220.0,0.00087999]
[1762229806053,3.11579426,107230.0,107220.0,0.00087999]
[1762229806182,3.11879426,107230.0,107220.0,0.00087999]
[1762229806631,2.92102197,107230.0,107220.0,0.00087999]
[1762229806933,2.75532447,107230.0,107220.0,0.00087999]
[1762229808578,2.79150675,107230.0,107220.0,0.00087999]
[1762229808820,2.69693069,107230.0,107220.0,0.00087999]
[1762229809612,2.69693069,107230.0,107220.0,0.00111003]
[1762229810269,2.67948273,107230.0,107220.0,0.00111003]
[1762229810651,2.64330045,107230.0,107220.0,0.00111003]
[1762229812135,2.62866278,107230.0,107220.0,0.00111003]
[1762229812540,2.64329241,107230.0,107220.0,0.00111003]
[1762229813161,2.69440405,107230.0,107220.0,0.00111003]
[1762229814477,2.68940405,107230.0,107220.0,0.00111003]
[1762229815232,3.02940405,107230.0,107220.0,0.00111003]
[1762229818939,3.27570405,107230.0,107220.0,0.00111003]
[1762229822271,3.29314108,107230.0,107220.0,0.00111003]
[1762229824234,2.90202944,107230.0,107220.0,0.01257003]
[1762229824444,3.22459241,107230.0,107220.0,0.05341003]
[1762229824635,3.22459241,107230.0,107220.0,0.02935003]
[1762229824876,3.22459241,107230.0,107220.0,0.19910239]
[1762229825560,3.22459241,107230.0,107220.0,0.01257003]
[1762229826409,3.31916847,107230.0,107220.0,0.00111003]
[1762229826629,3.33664267,107230.0,107220.0,0.00111003]
[1762229826859,3.33665047,107230.0,107220.0,0.00111003]
[1762229827079,3.37283275,107230.0,107220.0,0.00111003]
[1762229827289,3.40543423,107230.0,107220.0,0.00111003]
[1762229827669,3.40917387,107230.0,107220.0,0.00111003]
[1762229828347,2.96560536,107220.0,107210.0,0.0004]
[1762229828563,2.96560536,107220.0,107200.0,0.0004]
[1762229828564,3.00180504,107210.0,107200.0,0.0004]
[1762229828763,3.01927924,107210.0,107200.0,0.00054421]
[1762229828964,3.10504683,107210.0,107200.0,0.00054421]
[1762229829403,3.09006104,107210.0,107200.0,0.00054421]
[1762229829643,3.16560892,107210.0,107200.0,0.00054421]
[1762229830072,3.16760892,107210.0,107200.0,1e-08]
[1762229830284,3.00182244,107200.0,107190.0,0.0004]
[1762229830502,3.04412824,107200.0,107190.0,0.00048935]
[1762229830710,3.01929664,107200.0,107190.0,0.00048935]
[1762229830981,3.1138727,107200.0,107190.0,0.00048935]
[1762229831886,3.1138727,107200.0,107190.0,0.00148935]
[1762229833877,3.1138727,107200.0,107190.0,0.00217969]
[1762229834279,3.12851464,107200.0,107190.0,0.00217969]
[1762229835878,2.9977563,107200.0,107190.0,0.00217969]
[1762229838553,2.9802821,107200.0,107190.0,0.00217969]
[1762229839168,2.99772873,107200.0,107190.0,0.00217969]
[1762229840202,2.81116157,107200.0,107190.0,0.22913425]
[1762229840342,2.81115304,107200.0,107190.0,0.24148425]
[1762229840545,2.79651963,107200.0,107190.0,0.24148425]
[1762229840974,2.779073,107200.0,107190.0,0.24148425]
[1762229842264,2.96564016,107200.0,107190.0,0.24148425]
[1762229843055,2.96564016,107200.0,107190.0,0.05489969]
[1762229843494,2.96564016,107200.0,107190.0,0.24148425]
[1762229843875,2.779073,107200.0,107190.0,0.24148425]
[1762229844079,0.34,107200.0,107190.0,0.24148425]
[1762229844335,0.34,107200.0,107190.0,0.33024026]
[1762229844700,0.19582244,107240.0,107220.0,0.18653236]
[1762229844909,2.439073,107230.0,107220.0,0.18653236]
[1762229845121,2.439073,107230.0,107210.0,0.19889976]
[1762229845122,2.439073,107220.0,107210.0,0.19889976]
[1762229845275,2.439073,107230.0,107220.0,0.20375236]
[1762229845682,2.439073,107230.0,107220.0,0.22690236]
[1762229845893,2.779073,107230.0,107220.0,0.22690236]
[1762229846107,2.779073,107230.0,107220.0,0.22990236]
[1762229846304,2.96558796,107230.0,107220.0,0.22990236]
[1762229846736,2.779073,107230.0,107220.0,0.22990236]
[1762229846943,2.96558796,107230.0,107220.0,0.02522]
[1762229847567,2.779073,107230.0,107220.0,0.23490236]
[1762229849519,2.439073,107230.0,107220.0,0.23490236]
[1762229849958,0.18649903,107240.0,107230.0,0.18651496]
[1762229849959,2.62557057,107240.0,107230.0,0.18651496]
[1762229850187,2.779073,107240.0,107230.0,0.23899496]
[1762229850935,2.96557057,107240.0,107230.0,0.23899496]
[1762229851148,2.96605003,107240.0,107230.0,0.02885]
[1762229851524,2.96605003,107240.0,107230.0,0.03085]
[1762229851691,2.96605003,107240.0,107230.0,0.21736496]
[1762229851867,2.77955246,107240.0,107230.0,0.24099496]
[1762229852236,2.77955246,107240.0,107230.0,0.24399496]
[1762229853861,0.00047946,107240.0,107230.0,0.24399496]
[1762229854066,0.00047946,107240.0,107230.0,0.33275097]
[1762229854680,0.00047946,107240.0,107230.0,0.33075097]
[1762229855057,0.00047946,107240.0,107230.0,0.33175097]
[1762229855259,0.00047946,107240.0,107230.0,0.33875097]
[1762229859098,0.00131195,107260.0,107250.0,0.18648018]
[1762229859240,0.00145571,107260.0,107250.0,0.30408619]
[1762229859438,0.00145571,107260.0,107250.0,0.32771619]
[1762229860664,0.00145571,107260.0,107250.0,0.32871619]
[1762229861669,0.18791851,107260.0,107250.0,0.23996018]
[1762229861869,0.18791851,107260.0,107250.0,0.24196018]
[1762229862080,0.00145571,107260.0,107250.0,0.24196018]
[1762229862322,0.18791851,107260.0,107250.0,0.24196018]
[1762229862689,0.00145571,107260.0,107250.0,0.24196018]
[1762229863292,2.44052871,107260.0,107250.0,0.24196018]
[1762229863942,2.62699151,107260.0,107250.0,0.24196018]
[1762229864609,3.06156757,107260.0,107250.0,0.0153]
[1762229864786,3.09119154,107260.0,107250.0,0.003]
[1762229865049,3.06156757,107260.0,107250.0,0.003]
[1762229865468,3.07894369,107260.0,107250.0,0.003]
[1762229865666,3.10856766,107260.0,107250.0,0.003]
[1762229865779,3.14474994,107260.0,107250.0,0.003]
[1762229866393,3.0139916,107260.0,107250.0,0.001]
[1762229866595,2.96557057,107240.0,107230.0,0.31989623]
[1762229866796,2.96557057,107240.0,107230.0,0.23114022]
[1762229867019,2.96557057,107240.0,107230.0,0.05193]
[1762229867857,2.96557057,107240.0,107230.0,0.05293]
[1762229868063,2.779073,107240.0,107230.0,0.23944496]
[1762229868460,2.779073,107240.0,107230.0,0.24144496]
[1762229870778,0.19724165,107260.0,107240.0,0.18649244]
[1762229870779,2.779073,107250.0,107240.0,0.18649244]
[1762229871369,2.96555318,107250.0,107230.0,0.22481496]
[1762229871577,2.779073,107240.0,107230.0,0.22281496]
[1762229871777,0.34,107240.0,107230.0,0.22281496]
[1762229871981,0.34,107240.0,107230.0,0.23944496]
[1762229872394,0.34,107240.0,107230.0,0.23844496]
[1762229873455,0.34,107240.0,107230.0,0.23944496]
[1762229874243,0.34,107240.0,107230.0,0.24144496]
[1762229876127,0.52649757,107240.0,107230.0,0.24144496]
[1762229876524,0.34,107240.0,107230.0,0.24144496]
[1762229877114,0.52649757,107240.0,107230.0,0.24144496]
[1762229877694,0.34,107240.0,107230.0,0.24144496]
[1762229878599,0.52649757,107240.0,107230.0,0.24144496]
[1762229879241,2.96557057,107240.0,107230.0,0.05493]
[1762229879434,2.96557057,107240.0,107230.0,0.24144496]
[1762229880462,2.96557057,107240.0,107230.0,0.03193]
[1762229880714,2.9830366,107240.0,107230.0,0.03193]
[1762229880921,3.07761266,107240.0,107230.0,0.03193]
[1762229881555,2.9830366,107240.0,107230.0,0.05493]
[1762229881756,2.79653903,107240.0,107230.0,0.24144496]
[1762229881960,0.34,107240.0,107230.0,0.24144496]
[1762229882167,0.34,107240.0,107230.0,0.32920097]
[1762229882376,2.779073,107250.0,107240.0,0.18648789]
[1762229882597,2.9830194,107250.0,107240.0,0.03546]
[1762229882799,2.9830194,107250.0,107240.0,0.23858757]
[1762229883009,2.79653922,107250.0,107240.0,0.23858757]
[1762229883212,2.9830194,107250.0,107240.0,0.23858757]
[1762229883418,2.9830194,107250.0,107240.0,0.05209]
[1762229883628,2.9830194,107250.0,107240.0,0.23858757]
[1762229884039,2.79653922,107250.0,107240.0,0.23858757]
[1762229884419,2.9830194,107250.0,107240.0,0.23858757]
[1762229884832,2.79653922,107250.0,107240.0,0.23858757]
[1762229885360,2.9830194,107250.0,107240.0,0.23858757]
[1762229885537,2.79653922,107250.0,107240.0,0.23858757]
[1762229885734,2.9830194,107250.0,107240.0,0.23858757]
[1762229885992,2.79653922,107250.0,107240.0,0.23858757]
[1762229886986,2.779073,107250.0,107240.0,0.23858757]
[1762229888245,2.439073,107250.0,107240.0,0.23858757]
[1762229889526,2.439073,107250.0,107240.0,0.24058757]
[1762229889741,2.439073,107250.0,107240.0,0.24158757]
[1762229889958,2.439073,107250.0,107240.0,0.23858757]
[1762229890197,2.439073,107250.0,107240.0,0.24258757]
[1762229891337,2.439073,107250.0,107240.0,0.24458757]
[1762229900498,0.34145571,107260.0,107250.0,0.18648018]
[1762229900698,0.52791851,107260.0,107250.0,0.32707619]
[1762229900901,2.96699151,107260.0,107250.0,0.32707619]
[1762229901512,2.78052871,107260.0,107250.0,0.32707619]
[1762229901751,2.78052871,107260.0,107250.0,0.01405]
[1762229901963,2.99291913,107260.0,107250.0,0.003]
[1762229902179,3.04948574,107260.0,107250.0,0.003]
[1762229902592,3.04948574,107260.0,107250.0,0.001]
[1762229902855,2.62555318,107250.0,107240.0,0.01205]
[1762229903077,2.73760141,107250.0,107240.0,0.01205]
[1762229903284,2.73760141,107250.0,107240.0,0.05184]
[1762229903488,2.72012924,107250.0,107240.0,0.05184]
[1762229903691,2.73475544,107250.0,107240.0,0.05184]
[1762229904770,2.73475544,107250.0,107240.0,0.23833757]
[1762229905001,2.4536992,107250.0,107240.0,0.23833757]
[1762229905241,2.64117938,107250.0,107240.0,0.23833757]
[1762229905451,2.64317938,107250.0,107240.0,0.05184]
[1762229905829,2.62555318,107250.0,107240.0,0.23833757]
[1762229905968,2.439073,107250.0,107240.0,0.24033757]
[1762229907233,2.439073,107250.0,107240.0,0.24133757]
[1762229907456,2.62555318,107250.0,107240.0,0.24133757]
[1762229907880,2.439073,107250.0,107240.0,0.24133757]
[1762229908315,2.779073,107250.0,107240.0,0.24133757]
[1762229908956,2.44052871,107260.0,107250.0,0.18648018]
[1762229909173,2.44052871,107260.0,107250.0,0.23735018]
[1762229909407,2.78052871,107260.0,107250.0,0.23735018]
[1762229910032,2.78052871,107260.0,107250.0,0.05087]
[1762229910033,2.96699151,107260.0,107250.0,0.05087]
[1762229910496,3.06156757,107260.0,107250.0,0.05087]
[1762229910744,3.06156757,107260.0,107250.0,0.01206]
[1762229910937,3.08777488,107260.0,107250.0,0.01206]
[1762229911732,0.52648018,107250.0,107240.0,0.19854757]
[1762229911936,2.96555318,107250.0,107240.0,0.22232757]
[1762229912136,2.96555318,107250.0,107240.0,0.23735757]
[1762229912137,2.779073,107250.0,107240.0,0.23735757]
[1762229913209,2.96555318,107250.0,107240.0,0.23735757]
[1762229913526,2.96555318,107250.0,107240.0,0.23835757]
[1762229913731,2.96555318,107250.0,107240.0,0.05186]
[1762229913934,2.96555318,107250.0,107240.0,0.24035757]
[1762229914341,2.779073,107250.0,107240.0,0.24035757]
[1762229915466,2.96555318,107250.0,107240.0,0.24035757]
[1762229915654,2.779073,107250.0,107240.0,0.24035757]
[1762229915863,2.779073,107250.0,107240.0,0.05386]
[1762229916097,2.96555318,107250.0,107240.0,0.05386]
[1762229917452,3.06012924,107250.0,107240.0,0.003]
[1762229917900,3.06012924,107250.0,107240.0,0.04181]
[1762229918305,3.06012924,107250.0,107240.0,0.03981]
[1762229919359,3.06012924,107250.0,107240.0,0.03881]
[1762229922929,2.62555318,107250.0,107240.0,0.03881]
[1762229925537,2.62555318,107250.0,107240.0,0.05127]
[1762229926041,2.62557057,107240.0,107230.0,0.03565]
[1762229926412,2.62557057,107240.0,107230.0,0.05215]
[1762229926612,2.96557057,107240.0,107230.0,0.0123]
[1762229927119,2.96557057,107240.0,107230.0,0.0288]
[1762229927334,3.06014663,107240.0,107230.0,0.05215]
[1762229927555,2.96557057,107240.0,107230.0,0.05215]
[1762229929423,2.96557057,107240.0,107230.0,0.0288]
[1762229930806,2.96557057,107240.0,107230.0,0.05215]
[1762229932867,2.96557057,107240.0,107230.0,0.0288]
[1762229933269,2.779073,107240.0,107230.0,0.21531496]
[1762229933475,2.96557057,107240.0,107230.0,0.23866496]
[1762229933699,2.96557057,107240.0,107230.0,0.05215]
[1762229934300,2.78090657,107240.0,107230.0,0.05215]
[1762229935814,2.78090657,107240.0,107230.0,0.0288]
[1762229936203,2.78090657,107240.0,107230.0,0.05215]
[1762229936783,2.78092396,107230.0,107220.0,0.19883219]
[1762229937014,2.78092396,107230.0,107220.0,0.22218219]
[1762229937220,2.594409,107230.0,107220.0,0.23868219]
[1762229938039,2.78092396,107230.0,107220.0,0.24068219]
[1762229938266,2.594409,107230.0,107220.0,0.24068219]
[1762229939125,0.34,107230.0,107220.0,0.24168219]
[1762229941463,2.44090793,107240.0,107230.0,0.18651496]
[1762229941684,2.254409,107240.0,107230.0,0.23882496]
[1762229942185,2.254409,107240.0,107220.0,0.003]
[1762229942186,2.53548263,107240.0,107220.0,0.003]
[1762229942428,2.44094136,107220.0,107210.0,0.00023007]
[1762229942632,2.48219364,107220.0,107210.0,0.00023007]
[1762229942854,2.65692252,107220.0,107210.0,0.00023007]
[1762229943297,2.59933909,107220.0,107210.0,0.00023007]
[1762229943511,2.84476303,107220.0,107210.0,0.00023007]
[1762229943715,2.84476303,107220.0,107210.0,0.00070953]
[1762229943924,2.84676303,107220.0,107210.0,0.00070953]
[1762229944789,2.91790203,107220.0,107210.0,0.00070953]
[1762229945004,3.01647809,107220.0,107210.0,0.00070953]
[1762229947994,2.92190203,107220.0,107210.0,0.00070953]
[1762229948210,3.05581075,107220.0,107210.0,0.00070953]
[1762229948428,3.03831136,107220.0,107210.0,0.00070953]
[1762229948597,3.04338136,107220.0,107210.0,0.00070953]
[1762229949157,3.04138136,107220.0,107210.0,0.00070953]
[1762229949375,3.13595742,107220.0,107210.0,0.00070953]
[1762229949770,2.840709,107220.0,107210.0,0.22710929]
[1762229950063,3.02724136,107220.0,107210.0,0.04055953]
[1762229951254,3.02724136,107220.0,107210.0,0.01720953]
[1762229952100,3.03231136,107220.0,107210.0,0.00070953]
[1762229954256,3.02724136,107220.0,107210.0,0.04055953]
[1762229954606,3.02724136,107220.0,107210.0,0.20375929]
[1762229955039,2.840709,107220.0,107210.0,0.20375929]
[1762229955470,2.840709,107220.0,107210.0,0.22671929]
[1762229955684,2.254409,107220.0,107210.0,0.22671929]
[1762229955923,2.254409,107230.0,107220.0,0.18653236]
[1762229956128,2.254409,107230.0,107220.0,0.22549236]
[1762229956755,2.594409,107230.0,107220.0,0.22549236]
[1762229956956,2.78092396,107230.0,107220.0,0.22549236]
[1762229957203,2.78092396,107230.0,107220.0,0.03896]
[1762229957837,2.78092396,107230.0,107220.0,0.04296]
[1762229958049,2.78092396,107230.0,107220.0,0.22749236]
[1762229958476,2.78092396,107230.0,107220.0,0.22849236]
[1762229958680,2.594409,107230.0,107220.0,0.22849236]
[1762229959396,2.78092396,107230.0,107220.0,0.22849236]
[1762229959608,2.78092396,107230.0,107220.0,0.04196]
[1762229959820,2.78092396,107230.0,107220.0,0.22849236]
[1762229960025,2.594409,107230.0,107220.0,0.22849236]
[1762229961441,2.78092396,107230.0,107220.0,0.22849236]
[1762229961637,2.594409,107230.0,107220.0,0.22849236]
[1762229963595,2.80214522,107250.0,107240.0,0.18649757]
[1762229963804,2.594409,107240.0,107230.0,0.22095084]
[1762229964008,2.78090657,107240.0,107230.0,0.22095084]
[1762229964218,2.78090657,107240.0,107230.0,0.23696496]
[1762229964666,2.594409,107240.0,107230.0,0.23696496]
[1762229965108,2.78090657,107240.0,107230.0,0.23696496]
[1762229965324,2.78090657,107240.0,107230.0,0.05045]
[1762229965532,2.78090657,107240.0,107230.0,0.23696496]
[1762229966609,2.78090657,107240.0,107230.0,0.05045]
[1762229966815,2.78090657,107240.0,107230.0,0.23696496]
[1762229967023,2.594409,107240.0,107230.0,0.23696496]
[1762229967248,2.78090657,107240.0,107230.0,0.23696496]
[1762229967676,2.594409,107240.0,107230.0,0.23696496]
[1762229968715,2.78090657,107240.0,107230.0,0.23696496]
[1762229969214,2.78090657,107240.0,107230.0,0.05045]
[1762229971912,2.254409,107240.0,107230.0,0.23696496]
[1762229973115,2.44090657,107240.0,107230.0,0.23696496]
[1762229973494,2.254409,107240.0,107230.0,0.23696496]
[1762229975960,2.44090657,107240.0,107230.0,0.23696496]
[1762229976566,2.254409,107240.0,107230.0,0.23696496]
[1762229977150,2.44090657,107240.0,107230.0,0.23696496]
[1762229977905,2.78090657,107240.0,107230.0,0.05045]
[1762229978678,2.78090657,107240.0,107230.0,0.23696496]
[1762229979082,2.594409,107240.0,107230.0,0.23696496]
[1762229979658,2.78090657,107240.0,107230.0,0.23696496]
[1762229979981,2.594409,107240.0,107230.0,0.23696496]
[1762229980182,0.34,107240.0,107230.0,0.23696496]
[1762229981513,0.34,107240.0,107230.0,0.23996496]
[1762229987686,0.01462717,107250.0,107230.0,0.23996496]
[1762229987905,0.01462717,107250.0,107240.0,0.32842358]
[1762229987906,2.60903617,107250.0,107240.0,0.32842358]
[1762229988116,0.00638195,107260.0,107250.0,0.18648018]
[1762229988117,0.00131195,107260.0,107250.0,0.18648018]
[1762229988323,2.25572095,107260.0,107250.0,0.23965018]
[1762229988741,2.59572095,107260.0,107250.0,0.23965018]
[1762229989379,2.59585503,107260.0,107250.0,0.23965018]
[1762229991230,2.59585503,107260.0,107250.0,0.24265018]
[1762229991662,0.34144603,107260.0,107250.0,0.24265018]
[1762229993773,0.00144603,107260.0,107250.0,0.24265018]
[1762229994418,2.75585503,107260.0,107250.0,0.05617]
[1762229994622,2.53689389,107260.0,107250.0,0.05617]
[1762229995055,2.87689389,107260.0,107250.0,0.05617]
[1762229995296,2.87689389,107260.0,107250.0,0.24265018]
[1762229996117,2.59585503,107260.0,107250.0,0.24265018]
[1762229996555,2.78231783,107260.0,107250.0,0.24265018]
[1762229997985,2.78231783,107260.0,107250.0,0.05617]
[1762229998190,2.78231783,107260.0,107250.0,0.24265018]
[1762229999233,2.78231783,107260.0,107250.0,0.05617]
[1762229999437,2.87689389,107260.0,107250.0,0.05617]
[1762230000962,2.59585503,107260.0,107250.0,0.24265018]
[1762230001360,0.34144603,107260.0,107250.0,0.24265018]
[1762230001797,0.00144603,107260.0,107250.0,0.33140619]
[1762230009127,0.00144603,107260.0,107250.0,0.32840619]
[1762230009335,0.00144603,107260.0,107250.0,0.33140619]
[1762230009538,0.00144603,107260.0,107250.0,0.33740619]
[1762230010863,2.44231783,107260.0,107250.0,0.15092601]
[1762230011072,2.44231783,107260.0,107250.0,0.06217]
[1762230011073,2.87689389,107260.0,107250.0,0.06217]
[1762230011492,2.88196389,107260.0,107250.0,0.06217]
[1762230011698,2.88196389,107260.0,107250.0,0.24265018]
[1762230011905,2.88196389,107260.0,107250.0,0.05317]
[1762230012102,2.87689389,107260.0,107250.0,0.05317]
[1762230012313,2.87689389,107260.0,107250.0,0.24365018]
[1762230012537,2.87689389,107260.0,107250.0,0.24165018]
[1762230012803,2.87689389,107260.0,107250.0,0.23965018]
[1762230013018,2.87689389,107260.0,107250.0,0.05417]
[1762230013429,2.87689389,107260.0,107250.0,0.24065018]
[1762230013904,2.87689389,107260.0,107250.0,0.05417]
[1762230014118,2.78231783,107260.0,107250.0,0.05417]
[1762230015489,2.78231783,107260.0,107250.0,0.02996]
[1762230016146,2.78231783,107260.0,107250.0,0.24021018]
[1762230016358,2.78231783,107260.0,107250.0,0.05373]
[1762230018138,2.78231783,107260.0,107250.0,0.24021018]
[1762230019524,2.79639219,107260.0,107250.0,0.05373]
[1762230020149,2.60931416,107260.0,107250.0,0.05373]
[1762230020357,2.60931416,107260.0,107250.0,0.24021018]
[1762230020563,2.42285136,107260.0,107250.0,0.24021018]
[1762230020720,2.408777,107260.0,107250.0,0.24021018]
[1762230021128,2.5952398,107260.0,107250.0,0.05373]
[1762230023076,2.408777,107260.0,107250.0,0.05373]
[1762230023252,2.5952398,107260.0,107250.0,0.05373]
[1762230024761,2.408777,107260.0,107250.0,0.24021018]
[1762230026036,2.5952398,107260.0,107250.0,0.24021018]
[1762230026644,2.408777,107260.0,107250.0,0.24021018]
[1762230027538,2.5952398,107260.0,107250.0,0.24021018]
[1762230032798,2.5952398,107260.0,107250.0,0.05373]
[1762230033030,2.5952398,107260.0,107250.0,0.24021018]
[1762230033845,2.5952398,107260.0,107250.0,0.05373]
[1762230034337,2.5952398,107260.0,107250.0,0.24021018]
[1762230035342,2.408777,107260.0,107250.0,0.24021018]
[1762230036994,2.5952398,107260.0,107250.0,0.24021018]
[1762230037555,2.408777,107260.0,107250.0,0.24021018]
[1762230038738,2.5952398,107260.0,107250.0,0.24021018]
[1762230038968,2.5952398,107260.0,107250.0,0.05373]
[1762230039379,2.5952398,107260.0,107250.0,0.24021018]
[1762230040253,2.5952398,107260.0,107250.0,0.05373]
[1762230040459,2.68981586,107260.0,107250.0,0.01346]
[1762230040907,2.68981586,107260.0,107250.0,0.05259]
[1762230041331,2.68981586,107260.0,107250.0,0.05159]
[1762230042246,2.69081586,107260.0,107250.0,0.05159]
[1762230043593,2.69081586,107260.0,107250.0,0.02857]
[1762230047156,2.69588586,107260.0,107250.0,0.01246]
[1762230048345,0.52648018,107250.0,107230.0,0.03532]
[1762230048563,2.60034457,107240.0,107230.0,0.01149]
[1762230048766,2.60541457,107240.0,107230.0,0.01149]
[1762230048970,2.25529196,107230.0,107220.0,0.0351]
[1762230049403,2.25529196,107230.0,107220.0,0.05154]
[1762230049608,2.25529196,107230.0,107220.0,0.23807236]
[1762230049811,2.068777,107230.0,107220.0,0.23807236]
[1762230050271,2.25529196,107230.0,107220.0,0.23807236]
[1762230050515,2.068777,107230.0,107220.0,0.23807236]
[1762230050715,2.25529196,107230.0,107220.0,0.23807236]
[1762230051570,2.068777,107230.0,107220.0,0.23807236]
[1762230051789,2.068777,107230.0,107220.0,0.24007236]
[1762230051981,2.25529196,107230.0,107220.0,0.24007236]
[1762230052424,2.068777,107230.0,107220.0,0.24007236]
[1762230053272,2.69493802,107230.0,107220.0,0.02971]
[1762230053517,2.70000802,107230.0,107220.0,0.002]
[1762230053938,2.69493802,107230.0,107220.0,0.002]
[1762230054361,2.98891649,107230.0,107220.0,0.002]
[1762230054569,2.94630802,107230.0,107220.0,0.002]
[1762230054779,2.97435257,107230.0,107220.0,0.002]
[1762230054965,2.97435257,107230.0,107220.0,0.001]
[1762230055368,2.97735257,107230.0,107220.0,0.001]
[1762230056325,2.25530936,107220.0,107210.0,0.00023007]
[1762230056528,2.33085724,107220.0,107210.0,0.01222007]
[1762230057485,2.33592724,107220.0,107210.0,0.00070953]
[1762230057970,2.33085724,107220.0,107210.0,0.05296953]
[1762230058175,2.33185724,107220.0,107210.0,0.05296953]
[1762230058368,2.33185724,107220.0,107210.0,0.02913953]
[1762230059585,2.33692724,107220.0,107210.0,0.00070953]
[1762230060102,2.34199724,107220.0,107210.0,0.00070953]
[1762230060506,2.33692724,107220.0,107210.0,0.00070953]
[1762230060708,2.34199724,107220.0,107210.0,0.00070953]
[1762230060908,2.71817952,107220.0,107210.0,0.00070953]
[1762230061122,2.55170189,107220.0,107210.0,0.00070953]
[1762230061322,2.76363092,107220.0,107210.0,0.00070953]
[1762230061528,2.73823425,107220.0,107210.0,0.00070953]
[1762230061908,2.71500203,107220.0,107210.0,0.00070953]
[1762230062100,2.72863439,107220.0,107210.0,0.00070953]
[1762230062354,2.74827398,107220.0,107210.0,0.00070953]
[1762230062726,2.73363439,107220.0,107210.0,0.00070953]
[1762230062937,2.73663439,107220.0,107210.0,0.00070953]
[1762230063148,2.73363439,107220.0,107210.0,0.00070953]
[1762230063589,2.73763439,107220.0,107210.0,0.00070953]
[1762230063992,2.71800203,107220.0,107210.0,0.00070953]
[1762230064208,2.72300203,107220.0,107210.0,0.00070953]
[1762230065235,2.73764153,107220.0,107210.0,0.00070953]
[1762230067146,2.7522734,107220.0,107210.0,0.00070953]
[1762230071571,2.67672552,107220.0,107210.0,0.00070953]
[1762230072767,2.67272552,107220.0,107210.0,0.00070953]
[1762230073074,2.67472552,107220.0,107210.0,0.00070953]
[1762230073257,2.66972552,107220.0,107210.0,0.00070953]
[1762230073771,2.67272552,107220.0,107210.0,0.00070953]
[1762230073974,2.76730158,107220.0,107210.0,0.00070953]
[1762230075164,2.45001088,107220.0,107210.0,0.00070953]
[1762230075364,2.62191137,107220.0,107210.0,0.00070953]
[1762230075602,2.62191137,107220.0,107200.0,0.19822548]
[1762230075603,2.377551,107210.0,107200.0,0.19822548]
[1762230075817,2.377551,107210.0,107200.0,0.22270956]
[1762230076127,2.377551,107210.0,107200.0,0.24001198]
[1762230076673,2.56510076,107210.0,107200.0,0.24001198]
[1762230076835,2.56610076,107210.0,107200.0,0.24001198]
[1762230077155,2.81240076,107210.0,107200.0,0.0534465]
[1762230077395,2.89390352,107210.0,107200.0,0.0016765]
[1762230078014,2.89897352,107210.0,107200.0,0.0016765]
[1762230078788,2.91360544,107210.0,107200.0,0.0016765]
[1762230080113,2.91360544,107210.0,107200.0,0.18824366]
[1762230080321,2.91360544,107210.0,107200.0,0.0016765]
[1762230080652,2.64555292,107210.0,107200.0,0.18824366]
[1762230080853,2.64048292,107210.0,107200.0,0.24001366]
[1762230081059,2.64048292,107210.0,107200.0,0.21566366]
[1762230081280,2.82703268,107210.0,107200.0,0.21566366]
[1762230081497,2.83210268,107210.0,107200.0,0.19990366]
[1762230081730,2.64048292,107210.0,107200.0,0.19990366]
[1762230081939,2.82703268,107210.0,107200.0,0.24001366]
[1762230082156,2.82703268,107210.0,107200.0,0.21566366]
[1762230082344,2.64048292,107210.0,107200.0,0.21566366]
[1762230082556,2.4432992,107210.0,107200.0,0.24001366]
[1762230082691,2.30048292,107210.0,107200.0,0.24001366]
[1762230083593,2.30048292,107210.0,107200.0,0.21566366]
[1762230084136,2.30048292,107210.0,107200.0,0.24001366]
[1762230084583,2.625851,107210.0,107200.0,0.24001366]
[1762230086383,2.624851,107210.0,107200.0,0.24001366]
[1762230086591,2.623851,107210.0,107200.0,0.24001366]
[1762230086800,2.623851,107210.0,107200.0,0.24301366]
[1762230087746,2.623851,107210.0,107200.0,0.24501366]
[1762230088895,2.157675,107210.0,107200.0,0.24501366]
[1762230089323,2.157675,107230.0,107220.0,0.18653236]
[1762230089526,2.157675,107230.0,107220.0,0.19809236]
[1762230089962,2.34925996,107230.0,107220.0,0.01156]
[1762230090399,2.34925996,107230.0,107210.0,0.22415158]
[1762230090603,2.34925996,107230.0,107210.0,0.18786201]
[1762230090604,2.00927736,107220.0,107210.0,0.18786201]
[1762230091506,2.00927736,107220.0,107210.0,0.00131225]
[1762230091704,2.00927736,107220.0,107210.0,0.18786201]
[1762230091937,2.00927736,107220.0,107210.0,0.19942201]